fUSD/lending_fUSD_20240719
["ID","MTS","AMOUNT","RATE_DAILY","PERIOD"]
[332671411,1721416231748,-171.05,0.00024306,2]
[332671412,1721416231759,-180.42,0.00024578,2]
[332671413,1721416231769,-862.49454602,0.00024578,2]
[332671414,1721416231781,-1491.78545398,0.00024578,2]
[332671415,1721416231792,-5029.71130085,0.000262,5]
[332671416,1721416231804,-3340.5773814,0.000262,5]
[332671417,1721416231843,-2367.38584379,0.000262,5]
[332671418,1721416231856,-752.32547396,0.000262,5]
[332671419,1721416231867,-150.0,0.0002634,2]
[332671420,1721416231877,-45928.81567935,0.00026341,7]
[332671421,1721416231890,-2310.16278198,0.00026341,7]
[332671422,1721416231902,-2650.29061607,0.00026341,7]
[332671423,1721416231914,-719.56763967,0.00026341,7]
[332671424,1721416231929,-606.82638,0.00026341,7]
[332671425,1721416231944,-415.09721781,0.00026341,7]
[332671426,1721416231959,-308.807424,0.00026341,7]
[332671427,1721416231971,-3440.07294455,0.00026341,7]
[332671428,1721416231984,-9780.95185326,0.00026341,7]
[332671429,1721416232000,-315.29707946,0.00026341,7]
[332671430,1721416232012,-4091.13216543,0.00026341,7]
[332671431,1721416232024,-1082.26155855,0.00026341,7]
[332671432,1721416232037,-269.0000005,0.00026341,7]
[332671433,1721416232050,-1231.85132041,0.00026341,7]
[332671434,1721416232062,-311.84172578,0.00026341,7]
[332671435,1721416232598,-833.36001832,0.00026341,7]
[332671436,1721416232630,-537.12016184,0.00026341,7]
[332671437,1721416232654,-3360.830244,0.00026341,7]
[332671447,1721416237720,-2654.91902682,0.00026341,7]
[332671448,1721416237821,-18730.6992584,0.00026341,7]
[332671449,1721416237830,-327.34331338,0.00026341,7]
[332671450,1721416237841,-1479.70572838,0.00026341,7]
[332671451,1721416237851,-263.27706311,0.00026788,2]
[332671452,1721416237861,-19.01720851,0.0002679,2]
[332671453,1721416237872,-136.50090371,0.0002679,2]
[332671454,1721416237882,-296.19802604,0.00026828,2]
[332671455,1721416237892,-1444.88001929,0.00026847,2]
[332671456,1721416237901,-227.43774807,0.00026847,5]
[332671457,1721416237911,-227.43774807,0.00026847,5]
[332671458,1721416237920,-154.36,0.00028052,2]
[332671459,1721416237930,-302.35,0.00028207,2]
[332671460,1721416237940,-1500.0,0.00029278,5]
[332671461,1721416237949,-300.0,0.00029628,2]
[332671462,1721416238010,-272.3773798,0.00030265,2]
[332671463,1721416238020,-1720.42084523,0.00030265,4]
[332671465,1721416238030,-302.35,0.00030471,2]
[332671467,1721416238039,-174.67,0.00030541,120]
[332671469,1721416238049,-200.0,0.00030599,2]
[332671471,1721416238059,-1297.11,0.00030723,2]
[332671473,1721416238069,-250.0,0.00030814,2]
[332671475,1721416238078,-250.0,0.00031554,2]
[332671477,1721416238088,-1000.0,0.00031598,120]
[332671479,1721416238097,-167.0,0.00031656,2]
[332671481,1721416238106,-677.23,0.00031746,2]
[332671483,1721416238116,-4374.63,0.00032072,2]
[332671485,1721416238125,-392.8,0.00032118,2]
[332671487,1721416238135,-719.89,0.00032671,3]
[332671489,1721416238144,-302.35,0.00032735,2]
[332671491,1721416238153,-1006.54,0.000328,2]
[332671493,1721416238164,-3605.22950586,0.00032849,4]
[332671495,1721416238174,-367.73154456,0.00033067,15]
[332671497,1721416238183,-6925.85441556,0.00033167,15]
[332671499,1721416238195,-383.77514538,0.00033167,15]
[332671501,1721416238204,-180.71,0.00033267,120]
[332671503,1721416238216,-367.73154455,0.00033451,15]
[332671505,1721416238225,-498.73,0.000335,31]
[332671507,1721416238234,-498.73,0.000335,31]
[332671508,1721416238244,-498.73,0.000335,31]
[332671510,1721416238253,-498.73,0.000335,31]
[332671512,1721416238263,-498.73,0.000335,31]
[332671514,1721416238272,-498.73,0.000335,31]
[332671516,1721416238282,-498.73,0.000335,31]
[332671518,1721416238291,-498.73,0.000335,31]
[332671520,1721416238300,-498.73,0.000335,31]
[332671521,1721416238309,-498.73,0.000335,31]
[332671523,1721416238318,-498.73,0.000335,31]
[332671525,1721416238328,-498.73,0.000335,31]
[332671527,1721416238337,-498.73,0.000335,31]
[332671529,1721416238346,-498.73,0.000335,31]
[332671531,1721416238356,-498.73,0.000335,31]
[332671533,1721416238365,-498.73,0.000335,31]
[332671534,1721416238374,-498.73,0.000335,31]
[332671536,1721416238383,-498.73,0.000335,31]
[332671537,1721416238392,-498.73,0.000335,31]
[332671538,1721416238401,-498.73,0.000335,31]
[332671539,1721416238410,-7309.6295609,0.0003354,15]
[332671541,1721416238419,-1006.54,0.0003362,2]
[332671542,1721416238428,-367.73154455,0.00033835,15]
[332671544,1721416238437,-6442.05317568,0.00033912,15]
[332671555,1721416238542,-867.57638522,0.00033912,15]
[332671557,1721416238551,-1952.74361478,0.00034,30]
[332671560,1721416238577,-1550.12258897,0.00034,30]
[332671563,1721416238588,-334.92,0.00034,30]
[332671565,1721416238599,-820.5999,0.00034,30]
[332671567,1721416238610,-584.67365223,0.00034,30]
[332671680,1721416239839,-1640.24059423,0.0003247,4]
[332671692,1721416239945,-9416.53136047,0.0003247,4]
[332671694,1721416239954,-9339.51511683,0.00032845,4]
[332671696,1721416239964,-1754.11784402,0.00034,30]
[332671697,1721416239972,-1000.0,0.00034,27]
[332671700,1721416239982,-488.8288,0.0003401,2]
[332671701,1721416239992,-338.7468,0.00034036,2]
[332671704,1721416240002,-150.0,0.0003411,2]
[332671705,1721416240011,-409.95,0.0003411,2]
[332671707,1721416240020,-165.01,0.0003411,2]
[332671709,1721416240030,-150.0,0.0003411,2]
[332671711,1721416240039,-150.0,0.0003411,2]
[332671713,1721416240050,-168.97378393,0.00034136,2]
[332671715,1721416240059,-318.10888311,0.00034136,2]
[332671717,1721416240068,-492.003,0.00034136,2]
[332671719,1721416240078,-953.6278,0.00034136,2]
[332671721,1721416240087,-3396.17025527,0.00034136,2]
[332671882,1721416241668,-3172.28499206,0.00034136,2]
[332671884,1721416241682,-2676.57166531,0.00034136,2]
[332671886,1721416241694,-1234.26870636,0.00034136,2]
[332671888,1721416241706,-1445.47551796,0.00034136,2]
[332671891,1721416241718,-494.36280002,0.00034136,2]
[332672068,1721416243154,-678.22816,0.00034136,2]
[332672070,1721416243167,-47.63790302,0.00034136,2]
[332672072,1721416243177,-1167.33899524,0.00034145,2]
[332672074,1721416243188,-4023.90920476,0.00034145,2]
[332672076,1721416243198,-191.70382767,0.00034145,2]
[332672078,1721416243207,-165.89942488,0.00034146,2]
[332672080,1721416243217,-179.77556321,0.00034146,6]
[332672082,1721416243226,-170.0,0.000342,23]
[332672084,1721416243235,-284.05557945,0.0003422,15]
[332672248,1721416244989,-83.6759651,0.0003422,15]
[332672250,1721416244999,-921.14548332,0.00034226,6]
[332672263,1721416245248,-384.34999965,0.00034226,6]
[332672264,1721416245260,-714.91547541,0.00034226,6]
[332672265,1721416245278,-1243.9391314,0.00034226,6]
[332672266,1721416245309,-9123.0327794,0.00034226,6]
[332672267,1721416245320,-20728.0977604,0.00034226,6]
[332672268,1721416245332,-677.31320652,0.00034226,6]
[332672269,1721416245342,-193.52151505,0.00034226,2]
[332672270,1721416245351,-153.12,0.00034226,2]
[332672271,1721416245360,-202756.763017,0.00034236,6]
[332672272,1721416245369,-123950.83364948,0.00034236,6]
[332672412,1721416247056,-2207.1800953,0.00033321,2]
[332672424,1721416247159,-12561.9999047,0.00033321,2]
[332672426,1721416247169,-390.42,0.000341,10]
[332672428,1721416247179,-80856.86877152,0.00034236,6]
[332672430,1721416247189,-1243.85046268,0.00034245,30]
[332672432,1721416247199,-514.16,0.00034246,14]
[332672434,1721416247209,-500.0,0.00034246,14]
[332672436,1721416247220,-500.0,0.00034246,14]
[332672438,1721416247232,-500.0,0.00034246,14]
[332672440,1721416247242,-500.0,0.00034246,14]
[332672442,1721416247251,-500.0,0.00034246,14]
[332672444,1721416247262,-500.0,0.00034246,14]
[332672445,1721416247272,-500.0,0.00034246,14]
[332672447,1721416247282,-500.0,0.00034246,14]
[332672449,1721416247291,-500.0,0.00034246,14]
[332672451,1721416247301,-548.93,0.00034246,14]
[332672453,1721416247311,-500.0,0.00034246,14]
[332672455,1721416247320,-500.0,0.00034246,14]
[332672457,1721416247330,-500.0,0.00034246,14]
[332672460,1721416247341,-500.0,0.00034246,14]
[332672462,1721416247350,-618.25,0.00034246,14]
[332672463,1721416247360,-739.22,0.00034246,14]
[332672466,1721416247370,-533.72,0.00034246,14]
[332672468,1721416247380,-500.0,0.00034246,14]
[332672470,1721416247389,-506.49,0.00034246,14]
[332672472,1721416247398,-500.0,0.00034246,14]
[332672473,1721416247410,-500.0,0.00034246,14]
[332672475,1721416247419,-500.0,0.00034246,14]
[332672478,1721416247429,-671.08,0.00034246,14]
[332672480,1721416247438,-351.51218821,0.00034246,14]
[332672481,1721416247447,-500.0,0.00034246,14]
[332672482,1721416247457,-500.0,0.00034246,14]
[332672483,1721416247467,-500.0,0.00034246,14]
[332672484,1721416247477,-661.75,0.00034246,14]
[332672485,1721416247487,-500.0,0.00034246,14]
[332672486,1721416247496,-500.0,0.00034246,14]
[332672487,1721416247506,-608.72,0.00034246,14]
[332672488,1721416247515,-500.0,0.00034246,14]
[332672489,1721416247524,-500.0,0.00034246,14]
[332672490,1721416247534,-500.0,0.00034246,14]
[332672491,1721416247543,-500.0,0.00034246,14]
[332672492,1721416247553,-500.0,0.00034246,14]
[332672493,1721416247562,-500.0,0.00034246,14]
[332672494,1721416247572,-244.94064099,0.00034246,14]
[332672495,1721416247582,-500.0,0.00034246,14]
[332672496,1721416247591,-500.0,0.00034246,14]
[332672497,1721416247601,-620.84,0.00034246,14]
[332672498,1721416247611,-681.24,0.00034246,14]
[332672499,1721416247620,-500.0,0.00034246,14]
[332672500,1721416247632,-500.0,0.00034246,14]
[332672501,1721416247643,-500.0,0.00034246,14]
[332672502,1721416247652,-660.76,0.00034246,14]
[332672503,1721416247662,-503.68964916,0.00034246,14]
[332672504,1721416247671,-500.0,0.00034246,14]
[332672505,1721416247682,-649.88,0.00034246,14]
[332672506,1721416247691,-500.0,0.00034246,14]
[332672507,1721416247701,-500.0,0.00034246,14]
[332672508,1721416247711,-500.0,0.00034246,14]
[332672509,1721416247720,-921.17,0.00034246,14]
[332672510,1721416247729,-500.0,0.00034246,14]
[332672511,1721416247739,-893.01,0.00034246,14]
[332672512,1721416247748,-500.0,0.00034246,14]
[332672513,1721416247757,-635.51,0.00034246,14]
[332672514,1721416247766,-500.0,0.00034246,14]
[332672515,1721416247776,-500.0,0.00034246,14]
[332672516,1721416247786,-500.0,0.00034246,14]
[332672517,1721416247795,-500.0,0.00034246,14]
[332672518,1721416247805,-500.0,0.00034246,14]
[332672519,1721416247815,-500.0,0.00034246,14]
[332672520,1721416247825,-500.0,0.00034246,14]
[332672521,1721416247834,-585.44,0.00034246,14]
[332672522,1721416247844,-779.51,0.00034246,14]
[332672523,1721416247853,-500.0,0.00034246,14]
[332672524,1721416247863,-500.0,0.00034246,14]
[332672525,1721416247873,-599.51,0.00034246,14]
[332672526,1721416247883,-500.0,0.00034246,14]
[332672527,1721416247893,-736.25,0.00034246,14]
[332672528,1721416247904,-500.0,0.00034246,14]
[332672529,1721416247914,-500.0,0.00034246,14]
[332672531,1721416247924,-745.75,0.00034246,14]
[332672533,1721416247934,-500.0,0.00034246,14]
[332672535,1721416247945,-500.0,0.00034246,14]
[332672537,1721416247955,-500.0,0.00034246,14]
[332672539,1721416247966,-748.8,0.00034246,14]
[332672541,1721416247976,-500.0,0.00034246,14]
[332672543,1721416247987,-1208.28,0.00034246,14]
[332672545,1721416247997,-500.0,0.00034246,14]
[332672547,1721416248007,-876.34,0.00034246,14]
[332672548,1721416248016,-780.64,0.00034246,14]
[332672550,1721416248026,-501.71,0.00034246,14]
[332672553,1721416248036,-500.0,0.00034246,14]
[332672555,1721416248045,-500.0,0.00034246,14]
[332672557,1721416248054,-500.0,0.00034246,14]
[332672559,1721416248064,-500.0,0.00034246,14]
[332672561,1721416248074,-500.0,0.00034246,14]
[332672563,1721416248084,-2001.4,0.00034246,14]
[332672565,1721416248093,-500.0,0.00034246,14]
[332672567,1721416248103,-906.66,0.00034246,14]
[332672569,1721416248112,-500.0,0.00034246,14]
[332672571,1721416248122,-500.0,0.00034246,14]
[332672573,1721416248131,-500.0,0.00034246,2]
[332672574,1721416248141,-553.92,0.00034246,14]
[332672576,1721416248151,-500.0,0.00034246,14]
[332672578,1721416248161,-500.0,0.00034246,14]
[332672580,1721416248172,-1075.43,0.00034246,14]
[332672582,1721416248183,-1320.74,0.00034246,14]
[332672584,1721416248193,-500.0,0.00034246,14]
[332672586,1721416248202,-500.0,0.00034246,14]
[332672588,1721416248212,-500.0,0.00034246,14]
[332672590,1721416248222,-954.29,0.00034246,14]
[332672592,1721416248232,-500.0,0.00034246,14]
[332672594,1721416248242,-500.0,0.00034246,14]
[332672596,1721416248252,-1013.66,0.00034246,14]
[332672598,1721416248261,-500.0,0.00034246,14]
[332672600,1721416248271,-500.0,0.00034246,14]
[332672602,1721416248281,-817.84,0.00034246,14]
[332672604,1721416248291,-500.0,0.00034246,14]
[332672606,1721416248301,-500.0,0.00034246,14]
[332672608,1721416248311,-647.17,0.00034246,14]
[332672610,1721416248321,-569.71,0.00034246,14]
[332672613,1721416248330,-505.16142167,0.00034246,14]
[332672615,1721416248340,-500.0,0.00034246,14]
[332672617,1721416248349,-500.0,0.00034246,14]
[332672619,1721416248359,-500.0,0.00034246,14]
[332672621,1721416248369,-892.99,0.00034246,14]
[332672623,1721416248379,-500.0,0.00034246,14]
[332672625,1721416248389,-1860.89,0.00034246,14]
[332672627,1721416248399,-500.0,0.00034246,14]
[332672628,1721416248408,-500.0,0.00034246,14]
[332672630,1721416248418,-792.68,0.00034246,14]
[332672632,1721416248428,-1324.34,0.00034246,14]
[332672634,1721416248438,-500.0,0.00034246,14]
[332672636,1721416248448,-500.0,0.00034246,14]
[332672638,1721416248457,-500.0,0.00034246,14]
[332672640,1721416248467,-500.0,0.00034246,14]
[332672642,1721416248476,-500.0,0.00034246,14]
[332672644,1721416248486,-500.0,0.00034246,14]
[332672646,1721416248495,-973.21,0.00034246,14]
[332672648,1721416248504,-500.0,0.00034246,14]
[332672650,1721416248514,-909.82,0.00034246,2]
[332672652,1721416248523,-1141.45,0.00034246,14]
[332672654,1721416248532,-1360.05,0.00034246,14]
[332672656,1721416248542,-500.0,0.00034246,14]
[332672658,1721416248551,-500.0,0.00034246,14]
[332672660,1721416248561,-500.0,0.00034246,14]
[332672662,1721416248570,-500.0,0.00034246,14]
[332672664,1721416248580,-500.0,0.00034246,14]
[332672666,1721416248589,-500.0,0.00034246,14]
[332672668,1721416248598,-834.59,0.00034246,14]
[332672670,1721416248608,-1507.6,0.00034246,14]
[332672672,1721416248618,-500.0,0.00034246,14]
[332672674,1721416248631,-721.84,0.00034246,14]
[332672676,1721416248640,-823.98,0.00034246,14]
[332672678,1721416248650,-500.0,0.00034246,14]
[332672680,1721416248660,-500.0,0.00034246,14]
[332672682,1721416248670,-500.0,0.00034246,14]
[332672684,1721416248680,-1021.93,0.00034246,14]
[332672686,1721416248690,-1099.3,0.00034246,14]
[332672688,1721416248699,-500.0,0.00034246,14]
[332672690,1721416248710,-767.67,0.00034246,14]
[332672692,1721416248722,-547.09,0.00034246,14]
[332672694,1721416248732,-500.0,0.00034246,14]
[332672696,1721416248742,-1413.69,0.00034246,14]
[332672698,1721416248753,-500.0,0.00034246,14]
[332672700,1721416248763,-754.52,0.00034246,14]
[332672702,1721416248773,-500.0,0.00034246,14]
[332672704,1721416248782,-500.0,0.00034246,14]
[332672706,1721416248792,-500.47,0.00034246,14]
[332672708,1721416248802,-822.71,0.00034246,14]
[332672710,1721416248811,-500.0,0.00034246,14]
[332672712,1721416248821,-500.0,0.00034246,14]
[332672714,1721416248831,-500.0,0.00034246,14]
[332672716,1721416248841,-732.9,0.00034246,14]
[332672718,1721416248852,-500.0,0.00034246,14]
[332672720,1721416248862,-500.0,0.00034246,14]
[332672722,1721416248872,-525.77263804,0.00034246,14]
[332672724,1721416248881,-500.0,0.00034246,14]
[332672726,1721416248891,-500.0,0.00034246,14]
[332672728,1721416248901,-500.0,0.00034246,14]
[332672730,1721416248911,-500.0,0.00034246,14]
[332672732,1721416248921,-500.0,0.00034246,14]
[332672734,1721416248931,-500.0,0.00034246,14]
[332672736,1721416248941,-813.16,0.00034246,14]
[332672738,1721416248951,-1529.16,0.00034246,14]
[332672740,1721416248961,-500.0,0.00034246,14]
[332672742,1721416248974,-500.0,0.00034246,14]
[332672744,1721416248984,-500.0,0.00034246,14]
[332672746,1721416248995,-500.0,0.00034246,14]
[332672748,1721416249006,-500.0,0.00034246,14]
[332672750,1721416249016,-1046.36,0.00034246,14]
[332672752,1721416249026,-500.0,0.00034246,14]
[332672754,1721416249036,-500.0,0.00034246,14]
[332672756,1721416249046,-500.0,0.00034246,14]
[332672758,1721416249058,-500.0,0.00034246,14]
[332672761,1721416249070,-500.0,0.00034246,14]
[332672763,1721416249080,-672.12,0.00034246,14]
[332672765,1721416249090,-931.51,0.00034246,14]
[332672767,1721416249100,-500.0,0.00034246,14]
[332672769,1721416249110,-500.0,0.00034246,14]
[332672771,1721416249119,-500.0,0.00034246,14]
[332672773,1721416249129,-500.0,0.00034246,14]
[332672775,1721416249139,-1083.19,0.00034246,14]
[332672777,1721416249149,-500.0,0.00034246,14]
[332672779,1721416249159,-500.0,0.00034246,14]
[332672781,1721416249169,-500.0,0.00034246,14]
[332672783,1721416249179,-500.0,0.00034246,14]
[332672785,1721416249190,-500.0,0.00034246,14]
[332672787,1721416249200,-919.94,0.00034246,14]
[332672789,1721416249211,-1127.58,0.00034246,14]
[332672791,1721416249223,-618.26,0.00034246,14]
[332672793,1721416249233,-500.0,0.00034246,14]
[332672795,1721416249243,-500.0,0.00034246,14]
[332672797,1721416249254,-500.0,0.00034246,14]
[332672799,1721416249264,-647.6,0.00034246,14]
[332672801,1721416249275,-500.0,0.00034246,14]
[332672803,1721416249286,-500.0,0.00034246,14]
[332672805,1721416249297,-579.96,0.00034246,14]
[332672807,1721416249307,-500.0,0.00034246,14]
[332672809,1721416249318,-500.0,0.00034246,14]
[332672811,1721416249328,-500.0,0.00034246,14]
[332672813,1721416249339,-940.25,0.00034246,14]
[332672815,1721416249350,-1071.4,0.00034246,14]
[332672817,1721416249360,-500.0,0.00034246,14]
[332672819,1721416249371,-248.44300594,0.00034246,14]
[332672821,1721416249381,-882.85,0.00034246,14]
[332672823,1721416249392,-500.0,0.00034246,14]
[332672863,1721416249802,-1699.81,0.00034246,14]
[332672865,1721416249812,-500.0,0.00034246,14]
[332672867,1721416249822,-500.0,0.00034246,14]
[332672869,1721416249832,-500.0,0.00034246,14]
[332672871,1721416249842,-500.0,0.00034246,14]
[332672873,1721416249852,-1197.15,0.00034246,14]
[332672875,1721416249863,-500.0,0.00034246,14]
[332672877,1721416249873,-500.0,0.00034246,14]
[332672879,1721416249883,-1817.53,0.00034246,14]
[332672881,1721416249894,-873.44,0.00034246,14]
[332672883,1721416249905,-500.0,0.00034246,14]
[332672885,1721416249915,-2245.72,0.00034246,14]
[332672888,1721416249926,-500.0,0.00034246,14]
[332672890,1721416249936,-588.31,0.00034246,14]
[332672892,1721416249946,-1457.67,0.00034246,14]
[332672894,1721416249957,-1235.48,0.00034246,14]
[332672896,1721416249967,-1801.9,0.00034246,14]
[332672898,1721416249980,-522.94,0.00034246,14]
[332672900,1721416249991,-1555.91,0.00034246,14]
[332672902,1721416250005,-516.03,0.00034246,14]
[332672904,1721416250016,-500.0,0.00034246,14]
[332672905,1721416250026,-500.0,0.00034246,14]
[332672908,1721416250037,-986.6,0.00034246,14]
[332672910,1721416250047,-500.0,0.00034246,14]
[332672912,1721416250059,-960.2,0.00034246,14]
[332672914,1721416250069,-500.0,0.00034246,14]
[332672916,1721416250080,-793.37,0.00034246,14]
[332672918,1721416250091,-500.0,0.00034246,14]
[332672920,1721416250102,-500.0,0.00034246,14]
[332672922,1721416250112,-506.15,0.00034246,14]
[332672924,1721416250122,-1063.41,0.00034246,14]
[332672926,1721416250132,-500.0,0.00034246,14]
[332672928,1721416250141,-1093.77,0.00034246,14]
[332672930,1721416250151,-1027.22,0.00034246,14]
[332672932,1721416250162,-500.0,0.00034246,14]
[332672934,1721416250171,-500.0,0.00034246,14]
[332672936,1721416250181,-500.0,0.00034246,14]
[332672938,1721416250190,-500.0,0.00034246,14]
[332672939,1721416250200,-703.1,0.00034246,14]
[332672941,1721416250209,-500.0,0.00034246,14]
[332672943,1721416250218,-862.77,0.00034246,14]
[332672945,1721416250228,-500.0,0.00034246,14]
[332672947,1721416250238,-500.0,0.00034246,14]
[332672949,1721416250248,-1685.73,0.00034246,14]
[332672951,1721416250258,-1593.32,0.00034246,14]
[332672953,1721416250268,-500.0,0.00034246,14]
[332672955,1721416250277,-500.0,0.00034246,14]
[332672957,1721416250287,-500.0,0.00034246,14]
[332672959,1721416250297,-500.0,0.00034246,14]
[332672961,1721416250307,-500.0,0.00034246,14]
[332672963,1721416250317,-500.0,0.00034246,14]
[332672965,1721416250326,-500.0,0.00034246,14]
[332672967,1721416250335,-500.0,0.00034246,14]
[332672969,1721416250344,-548.84,0.00034246,14]
[332672971,1721416250353,-717.65,0.00034246,14]
[332672973,1721416250363,-1054.59,0.00034246,14]
[332672975,1721416250373,-500.0,0.00034246,14]
[332672977,1721416250382,-1288.79,0.00034246,14]
[332672979,1721416250391,-500.0,0.00034246,14]
[332672981,1721416250401,-500.0,0.00034246,14]
[332672983,1721416250410,-500.0,0.00034246,14]
[332672985,1721416250420,-500.0,0.00034246,14]
[332672987,1721416250430,-648.33,0.00034246,14]
[332672988,1721416250439,-500.0,0.00034246,14]
[332672990,1721416250449,-890.54,0.00034246,7]
[332672992,1721416250458,-500.0,0.00034246,14]
[332672994,1721416250467,-500.0,0.00034246,14]
[332672996,1721416250478,-1041.5,0.00034246,14]
[332672998,1721416250488,-500.0,0.00034246,14]
[332673000,1721416250497,-500.0,0.00034246,14]
[332673002,1721416250506,-593.48,0.00034246,14]
[332673004,1721416250516,-500.0,0.00034246,14]
[332673006,1721416250525,-500.0,0.00034246,14]
[332673008,1721416250534,-1238.75,0.00034246,14]
[332673010,1721416250544,-893.6,0.00034246,14]
[332673012,1721416250553,-993.68,0.00034246,14]
[332673014,1721416250563,-852.35,0.00034246,14]
[332673016,1721416250573,-500.0,0.00034246,14]
[332673018,1721416250583,-500.0,0.00034246,14]
[332673020,1721416250593,-500.0,0.00034246,14]
[332673022,1721416250603,-1169.48,0.00034246,14]
[332673024,1721416250613,-500.0,0.00034246,14]
[332673026,1721416250623,-1559.89,0.00034246,14]
[332673028,1721416250634,-500.0,0.00034246,14]
[332673030,1721416250645,-500.0,0.00034246,14]
[332673032,1721416250655,-500.0,0.00034246,14]
[332673034,1721416250664,-500.0,0.00034246,14]
[332673036,1721416250674,-6533.81,0.00034246,14]
[332673038,1721416250684,-500.0,0.00034246,14]
[332673040,1721416250693,-1034.61,0.00034246,14]
[332673042,1721416250705,-500.0,0.00034246,14]
[332673044,1721416250716,-500.0,0.00034246,14]
[332673046,1721416250727,-500.0,0.00034246,14]
[332673048,1721416250738,-500.0,0.00034246,14]
[332673050,1721416250747,-801.51,0.00034246,14]
[332673052,1721416250756,-910.14,0.00034246,14]
[332673054,1721416250766,-500.0,0.00034246,14]
[332673056,1721416250776,-746.63531888,0.00034246,14]
[332673060,1721416250802,-233.80468112,0.00034246,14]
[332673062,1721416250812,-500.0,0.00034246,14]
[332673064,1721416250821,-1007.80881888,0.00034246,14]
[332673066,1721416250832,-5383.19038756,0.00034246,14]
[332673068,1721416250844,-1114.89358792,0.00034246,14]
[332673071,1721416250863,-880.6965,0.00034246,14]
[332673073,1721416250875,-473.01070564,0.00034246,14]
[332673075,1721416250885,-997.69284986,0.00034246,14]
[332673077,1721416250897,-281.67715014,0.00034246,14]
[332673079,1721416250906,-280.46,0.00034246,14]
[332673081,1721416250915,-500.0,0.00034246,14]
[332673083,1721416250925,-779.78,0.00034246,14]
[332673085,1721416250934,-606.77,0.00034246,14]
[332673087,1721416250943,-500.0,0.00034246,14]
[332673089,1721416250953,-500.0,0.00034246,14]
[332673091,1721416250962,-500.0,0.00034246,14]
[332673093,1721416250972,-500.0,0.00034246,14]
[332673095,1721416250981,-500.0,0.00034246,14]
[332673097,1721416250990,-1457.7,0.00034246,14]
[332673099,1721416251000,-627.83,0.00034246,14]
[332673100,1721416251010,-500.0,0.00034246,14]
[332673102,1721416251020,-500.0,0.00034246,14]
[332673104,1721416251029,-1064.16,0.00034246,14]
[332673106,1721416251038,-500.0,0.00034246,14]
[332673108,1721416251047,-500.0,0.00034246,14]
[332673110,1721416251056,-900.29,0.00034246,14]
[332673112,1721416251066,-221.61180644,0.00034246,14]
[332673114,1721416251075,-584.09,0.00034246,14]
[332673116,1721416251084,-500.0,0.00034246,14]
[332673118,1721416251095,-500.0,0.00034246,14]
[332673120,1721416251104,-1275.77,0.00034246,14]
[332673122,1721416251114,-500.0,0.00034246,14]
[332673124,1721416251124,-3682.83,0.00034246,14]
[332673126,1721416251134,-500.0,0.00034246,14]
[332673128,1721416251144,-2918.81,0.00034246,14]
[332673130,1721416251155,-826.55,0.00034246,14]
[332673133,1721416251168,-500.0,0.00034246,14]
[332673135,1721416251177,-500.0,0.00034246,14]
[332673136,1721416251187,-500.0,0.00034246,14]